[Event "Titled Tuesday Blitz May 25 2021"]
[White "Khanin, Semen"]
[Black "Kovalev, Vladislav"]
[WhiteFideId "4111990"]
[BlackFideId "13504398"]
[WhiteElo "2521"]
[BlackElo "2573"]
[Result "1-0"]
[Round "07"]
[TimeControl "180+1"]
[Date "2021.05.25"]
[WhiteClock "0:00:29"]
[BlackClock "0:00:08"]

1. e4 {[%clk 0:03:00]}  e5 {[%clk 0:03:00]} 2. Nf3 {[%clk 0:03:00]}  Nc6 {[%clk 0:03:01]} 3. Bb5 {[%clk 0:03:00]}  a6 {[%clk 0:03:01]} 4. Ba4 {[%clk 0:03:00]}  Nf6 {[%clk 0:02:59]} 5. O-O {[%clk 0:02:59]}  Be7 {[%clk 0:03:00]} 6. d3 {[%clk 0:02:58]}  b5 {[%clk 0:03:00]} 7. Bb3 {[%clk 0:02:58]}  d6 {[%clk 0:03:00]} 8. a3 {[%clk 0:02:58]}  O-O {[%clk 0:03:00]} 9. Nc3 {[%clk 0:02:59]}  Nb8 {[%clk 0:03:01]} 10. h3 {[%clk 0:02:57]}  Nbd7 {[%clk 0:03:00]} 11. Re1 {[%clk 0:02:56]}  Nc5 {[%clk 0:03:00]} 12. Ba2 {[%clk 0:02:56]}  Be6 {[%clk 0:03:00]} 13. Ne2 {[%clk 0:02:51]}  Bxa2 {[%clk 0:02:59]} 14. Rxa2 {[%clk 0:02:51]}  a5 {[%clk 0:03:00]} 15. Ng3 {[%clk 0:02:45]}  Re8 {[%clk 0:03:00]} 16. Ra1 {[%clk 0:02:41]}  Bf8 {[%clk 0:02:57]} 17. Nh2 {[%clk 0:02:40]}  g6 {[%clk 0:02:56]} 18. Ng4 {[%clk 0:02:39]}  Nxg4 {[%clk 0:02:53]} 19. hxg4 {[%clk 0:02:39]}  Qh4 {[%clk 0:02:21]} 20. Qf3 {[%clk 0:02:27]}  Ne6 {[%clk 0:02:01]} 21. c3 {[%clk 0:02:26]}  a4 {[%clk 0:01:59]} 22. Be3 {[%clk 0:02:23]}  c5 {[%clk 0:01:56]} 23. Rad1 {[%clk 0:02:02]}  Rad8 {[%clk 0:01:33]} 24. Nf1 {[%clk 0:01:49]}  Be7 {[%clk 0:01:16]} 25. g3 {[%clk 0:01:44]}  Qh3 {[%clk 0:01:07]} 26. Nh2 {[%clk 0:01:27]}  Kg7 {[%clk 0:00:56]} 27. Qg2 {[%clk 0:01:26]}  Qxg2+ {[%clk 0:00:56]} 28. Kxg2 {[%clk 0:01:27]}  d5 {[%clk 0:00:55]} 29. exd5 {[%clk 0:01:24]}  Rxd5 {[%clk 0:00:56]} 30. c4 {[%clk 0:01:24]}  Rd7 {[%clk 0:00:39]} 31. Nf3 {[%clk 0:01:22]}  f6 {[%clk 0:00:38]} 32. cxb5 {[%clk 0:01:21]}  Rb8 {[%clk 0:00:37]} 33. g5 {[%clk 0:01:19]}  Rxb5 {[%clk 0:00:38]} 34. gxf6+ {[%clk 0:01:19]}  Bxf6 {[%clk 0:00:39]} 35. Bc1 {[%clk 0:01:17]}  Rd5 {[%clk 0:00:27]} 36. Re4 {[%clk 0:01:16]}  Nd4 {[%clk 0:00:21]} 37. Nd2 {[%clk 0:01:10]}  h5 {[%clk 0:00:12]} 38. Nc4 {[%clk 0:01:09]}  Rb3 {[%clk 0:00:12]} 39. Be3 {[%clk 0:01:02]}  Nc6 {[%clk 0:00:10]} 40. Kf1 {[%clk 0:00:51]}  Be7 {[%clk 0:00:07]} 41. Ke2 {[%clk 0:00:49]}  Kf7 {[%clk 0:00:07]} 42. g4 {[%clk 0:00:45]}  h4 {[%clk 0:00:07]} 43. g5 {[%clk 0:00:46]}  Ke6 {[%clk 0:00:02]} 44. Rxh4 {[%clk 0:00:45]}  Nd4+ {[%clk 0:00:02]} 45. Bxd4 {[%clk 0:00:43]}  cxd4 {[%clk 0:00:03]} 46. Re4 {[%clk 0:00:39]}  Kf5 {[%clk 0:00:02]} 47. f4 {[%clk 0:00:38]}  Bd6 {[%clk 0:00:01]} 48. fxe5 {[%clk 0:00:32]}  Bxe5 {[%clk 0:00:01]} 49. Rf1+ {[%clk 0:00:32]}  Ke6 {[%clk 0:00:02]} 50. Rf6+ {[%clk 0:00:32]}  Ke7 {[%clk 0:00:03]} 51. Rxe5+ {[%clk 0:00:31]}  Rxe5+ {[%clk 0:00:03]} 52. Nxe5 {[%clk 0:00:31]}  Rxb2+ {[%clk 0:00:04]} 53. Kf3 {[%clk 0:00:32]}  Rb3 {[%clk 0:00:04]} 54. Ke4 {[%clk 0:00:31]}  Rxa3 {[%clk 0:00:05]} 55. Nxg6+ {[%clk 0:00:32]}  Kd8 {[%clk 0:00:05]} 56. Ne5 {[%clk 0:00:31]}  Ra1 {[%clk 0:00:06]} 57. g6 {[%clk 0:00:29]}  a3 {[%clk 0:00:07]} 58. g7 {[%clk 0:00:28]}  Rg1 {[%clk 0:00:08]} 59. Rg6 {[%clk 0:00:29]} 1-0


[Site "https://www.chess.com"]

[Event "Titled Tuesday Blitz May 25 2021"]
[White "Korkmaz, Necmettin"]
[Black "Ronka, Erik"]
[WhiteFideId "6303285"]
[BlackFideId "505080"]
[WhiteElo "2094"]
[BlackElo "2264"]
[Result "1-0"]
[Round "07"]
[TimeControl "180+1"]
[Date "2021.05.25"]
[WhiteClock "0:00:11"]
[BlackClock "0:00:04"]

1. d4 {[%clk 0:03:00]}  d5 {[%clk 0:02:59]} 2. Nf3 {[%clk 0:03:00]}  Nf6 {[%clk 0:02:59]} 3. e3 {[%clk 0:03:00]}  Bg4 {[%clk 0:02:58]} 4. Be2 {[%clk 0:02:57]}  e6 {[%clk 0:02:57]} 5. O-O {[%clk 0:02:56]}  Nbd7 {[%clk 0:02:57]} 6. b3 {[%clk 0:02:57]}  Bd6 {[%clk 0:02:57]} 7. Bb2 {[%clk 0:02:57]}  O-O {[%clk 0:02:57]} 8. Nbd2 {[%clk 0:02:53]}  Qe7 {[%clk 0:02:57]} 9. Ne5 {[%clk 0:02:53]}  Bxe2 {[%clk 0:02:56]} 10. Qxe2 {[%clk 0:02:54]}  Ba3 {[%clk 0:02:50]} 11. Bxa3 {[%clk 0:02:49]}  Qxa3 {[%clk 0:02:51]} 12. Nxd7 {[%clk 0:02:47]}  Nxd7 {[%clk 0:02:51]} 13. c4 {[%clk 0:02:47]}  c6 {[%clk 0:02:46]} 14. e4 {[%clk 0:02:46]}  dxe4 {[%clk 0:02:39]} 15. Nxe4 {[%clk 0:02:45]}  Qe7 {[%clk 0:02:17]} 16. Rfe1 {[%clk 0:02:44]}  Nf6 {[%clk 0:02:15]} 17. Rad1 {[%clk 0:02:43]}  Nxe4 {[%clk 0:02:15]} 18. Qxe4 {[%clk 0:02:44]}  Qa3 {[%clk 0:02:08]} 19. Re2 {[%clk 0:02:44]}  Rad8 {[%clk 0:02:06]} 20. h4 {[%clk 0:02:40]}  h6 {[%clk 0:02:01]} 21. Rd3 {[%clk 0:02:30]}  Qd6 {[%clk 0:01:47]} 22. Ree3 {[%clk 0:02:17]}  Rd7 {[%clk 0:01:39]} 23. Rg3 {[%clk 0:02:16]}  f5 {[%clk 0:01:30]} 24. Qe2 {[%clk 0:02:12]}  Rfd8 {[%clk 0:01:16]} 25. Rg6 {[%clk 0:02:09]}  Re7 {[%clk 0:01:10]} 26. h5 {[%clk 0:01:47]}  Kf7 {[%clk 0:01:01]} 27. d5 {[%clk 0:01:41]}  cxd5 {[%clk 0:00:47]} 28. cxd5 {[%clk 0:01:40]}  Kf8 {[%clk 0:00:31]} 29. Qf3 {[%clk 0:01:08]}  Qe5 {[%clk 0:00:18]} 30. dxe6 {[%clk 0:00:50]}  Qe1+ {[%clk 0:00:16]} 31. Kh2 {[%clk 0:00:50]}  Qe5+ {[%clk 0:00:15]} 32. g3 {[%clk 0:00:50]}  Rde8 {[%clk 0:00:14]} 33. Rd5 {[%clk 0:00:48]}  Qe1 {[%clk 0:00:11]} 34. Rxf5+ {[%clk 0:00:47]}  Kg8 {[%clk 0:00:11]} 35. Rf7 {[%clk 0:00:45]}  Qe5 {[%clk 0:00:03]} 36. Rxe7 {[%clk 0:00:20]}  Rxe7 {[%clk 0:00:03]} 37. Qg4 {[%clk 0:00:20]}  Kh7 {[%clk 0:00:01]} 38. Kg2 {[%clk 0:00:19]}  Qd5+ {[%clk 0:00:01]} 39. Kh2 {[%clk 0:00:19]}  Qe5 {[%clk 0:00:02]} 40. Kg2 {[%clk 0:00:12]}  Qd5+ {[%clk 0:00:02]} 41. Qf3 {[%clk 0:00:12]}  Qe5 {[%clk 0:00:03]} 42. Qd3 {[%clk 0:00:11]}  Kg8 {[%clk 0:00:03]} 43. Qd8+ {[%clk 0:00:11]}  Kh7 {[%clk 0:00:03]} 44. Qxe7 {[%clk 0:00:11]}  Qe4+ {[%clk 0:00:04]} 45. Kh2 {[%clk 0:00:11]}  Qf3 {[%clk 0:00:04]} 46. Qxg7# {[%clk 0:00:11]} 1-0


[Site "https://www.chess.com"]

[Event "Titled Tuesday Blitz May 25 2021"]
[White "Kosteniuk, Alexandra"]
[Black "Taboas Rodriguez, Daniel"]
[WhiteFideId "4128125"]
[BlackFideId "2208466"]
[WhiteElo "2521"]
[BlackElo "2429"]
[Result "1-0"]
[Round "07"]
[TimeControl "180+1"]
[Date "2021.05.25"]
[WhiteClock "0:02:16"]
[BlackClock "0:02:11"]

1. e4 {[%clk 0:03:00]}  e6 {[%clk 0:02:59]} 2. d4 {[%clk 0:03:00]}  d5 {[%clk 0:03:00]} 3. Nc3 {[%clk 0:03:00]}  Nc6 {[%clk 0:03:00]} 4. Nf3 {[%clk 0:02:58]}  Nf6 {[%clk 0:03:00]} 5. Bd3 {[%clk 0:02:58]}  Nb4 {[%clk 0:03:00]} 6. O-O {[%clk 0:02:48]}  Nxd3 {[%clk 0:03:00]} 7. Qxd3 {[%clk 0:02:49]}  Be7 {[%clk 0:02:57]} 8. e5 {[%clk 0:02:40]}  Nd7 {[%clk 0:02:57]} 9. Ne2 {[%clk 0:02:40]}  c5 {[%clk 0:02:56]} 10. c3 {[%clk 0:02:41]}  b6 {[%clk 0:02:56]} 11. Ng3 {[%clk 0:02:37]}  a5 {[%clk 0:02:56]} 12. Re1 {[%clk 0:02:36]}  Ba6 {[%clk 0:02:56]} 13. Qe3 {[%clk 0:02:36]}  Rc8 {[%clk 0:02:37]} 14. a3 {[%clk 0:02:35]}  Bc4 {[%clk 0:02:33]} 15. Qf4 {[%clk 0:02:24]}  Bd3 {[%clk 0:02:25]} 16. h4 {[%clk 0:02:22]}  b5 {[%clk 0:02:17]} 17. Nh5 {[%clk 0:02:17]}  g6 {[%clk 0:02:14]} 18. Ng7+ {[%clk 0:02:16]}  Kf8 {[%clk 0:02:11]} 19. Nxe6+ {[%clk 0:02:16]} 1-0


[Site "https://www.chess.com"]

[Event "Titled Tuesday Blitz May 25 2021"]
[White "Lazavik, Denis"]
[Black "Gelman, Alexander"]
[WhiteFideId "13515110"]
[BlackFideId "4118316"]
[WhiteElo "2436"]
[BlackElo "2375"]
[Result "1-0"]
[Round "07"]
[TimeControl "180+1"]
[Date "2021.05.25"]
[WhiteClock "0:01:03"]
[BlackClock "0:00:32"]

1. d4 {[%clk 0:03:00]}  Nf6 {[%clk 0:02:58]} 2. c4 {[%clk 0:03:00]}  c5 {[%clk 0:02:58]} 3. d5 {[%clk 0:03:00]}  d6 {[%clk 0:02:58]} 4. Nc3 {[%clk 0:03:00]}  Nbd7 {[%clk 0:02:58]} 5. e4 {[%clk 0:02:59]}  h6 {[%clk 0:02:58]} 6. f4 {[%clk 0:02:41]}  g5 {[%clk 0:02:58]} 7. fxg5 {[%clk 0:02:36]}  hxg5 {[%clk 0:02:58]} 8. Bxg5 {[%clk 0:02:36]}  Bg7 {[%clk 0:02:29]} 9. Nf3 {[%clk 0:02:34]}  Nh5 {[%clk 0:02:29]} 10. Be2 {[%clk 0:02:30]}  Ng3 {[%clk 0:02:26]} 11. Rg1 {[%clk 0:02:25]}  Nxe2 {[%clk 0:02:26]} 12. Qxe2 {[%clk 0:02:26]}  Qa5 {[%clk 0:02:24]} 13. Bd2 {[%clk 0:02:22]}  a6 {[%clk 0:02:18]} 14. Nd1 {[%clk 0:02:08]}  Qa4 {[%clk 0:02:01]} 15. Bc3 {[%clk 0:02:05]}  Bxc3+ {[%clk 0:01:55]} 16. Nxc3 {[%clk 0:02:06]}  Qb4 {[%clk 0:01:54]} 17. O-O-O {[%clk 0:02:03]}  f6 {[%clk 0:01:51]} 18. a3 {[%clk 0:01:51]}  Qa5 {[%clk 0:01:46]} 19. g4 {[%clk 0:01:49]}  b5 {[%clk 0:01:39]} 20. cxb5 {[%clk 0:01:46]}  Rb8 {[%clk 0:01:22]} 21. g5 {[%clk 0:01:31]}  axb5 {[%clk 0:01:09]} 22. gxf6 {[%clk 0:01:31]}  exf6 {[%clk 0:01:09]} 23. e5 {[%clk 0:01:23]}  dxe5 {[%clk 0:00:59]} 24. Ne4 {[%clk 0:01:19]}  b4 {[%clk 0:00:56]} 25. Nxf6+ {[%clk 0:01:16]}  Kd8 {[%clk 0:00:48]} 26. Nxe5 {[%clk 0:01:07]}  Nxe5 {[%clk 0:00:35]} 27. Qxe5 {[%clk 0:01:06]}  Rb6 {[%clk 0:00:32]} 28. Rg7 {[%clk 0:01:03]} 1-0


[Site "https://www.chess.com"]

[Event "Titled Tuesday Blitz May 25 2021"]
[White "Madaminov, Mukhiddin"]
[Black "Abdrlauf, Elham"]
[WhiteFideId "14210703"]
[BlackFideId "1533533"]
[WhiteElo "1747"]
[BlackElo "2326"]
[Result "0-1"]
[Round "07"]
[TimeControl "180+1"]
[Date "2021.05.25"]
[WhiteClock "0:00:13"]
[BlackClock "0:00:15"]

1. e4 {[%clk 0:02:56]}  c6 {[%clk 0:02:59]} 2. Nf3 {[%clk 0:02:47]}  d5 {[%clk 0:03:00]} 3. Nc3 {[%clk 0:02:48]}  dxe4 {[%clk 0:03:00]} 4. Nxe4 {[%clk 0:02:49]}  Nf6 {[%clk 0:03:00]} 5. Nxf6+ {[%clk 0:02:49]}  exf6 {[%clk 0:03:01]} 6. Bc4 {[%clk 0:02:48]}  Bd6 {[%clk 0:03:01]} 7. h3 {[%clk 0:02:48]}  O-O {[%clk 0:03:01]} 8. O-O {[%clk 0:02:48]}  Re8 {[%clk 0:03:01]} 9. d4 {[%clk 0:02:49]}  Nd7 {[%clk 0:03:02]} 10. Re1 {[%clk 0:02:49]}  Nf8 {[%clk 0:03:01]} 11. c3 {[%clk 0:02:48]}  Bf5 {[%clk 0:02:58]} 12. Bd2 {[%clk 0:02:46]}  Ng6 {[%clk 0:02:55]} 13. a4 {[%clk 0:02:39]}  Qd7 {[%clk 0:02:55]} 14. Rxe8+ {[%clk 0:02:35]}  Rxe8 {[%clk 0:02:56]} 15. Qf1 {[%clk 0:02:35]}  Be4 {[%clk 0:02:51]} 16. Ne1 {[%clk 0:01:51]}  Bc7 {[%clk 0:02:31]} 17. Bd3 {[%clk 0:01:38]}  Qd6 {[%clk 0:02:09]} 18. g3 {[%clk 0:01:35]}  f5 {[%clk 0:02:08]} 19. Rd1 {[%clk 0:01:30]}  h5 {[%clk 0:01:21]} 20. Bxe4 {[%clk 0:01:13]}  fxe4 {[%clk 0:01:07]} 21. Qg2 {[%clk 0:01:12]}  h4 {[%clk 0:01:05]} 22. g4 {[%clk 0:01:13]}  Qd5 {[%clk 0:00:58]} 23. b4 {[%clk 0:00:32]}  Bf4 {[%clk 0:00:56]} 24. Be3 {[%clk 0:00:28]}  Qb3 {[%clk 0:00:54]} 25. Rc1 {[%clk 0:00:27]}  Qxa4 {[%clk 0:00:46]} 26. g5 {[%clk 0:00:27]}  Qa3 {[%clk 0:00:43]} 27. Rc2 {[%clk 0:00:27]}  Qa1 {[%clk 0:00:41]} 28. Rc1 {[%clk 0:00:24]}  Qb2 {[%clk 0:00:40]} 29. Rc2 {[%clk 0:00:24]}  Qb3 {[%clk 0:00:38]} 30. Qg4 {[%clk 0:00:23]}  Bxe3 {[%clk 0:00:28]} 31. fxe3 {[%clk 0:00:24]}  Qb1 {[%clk 0:00:24]} 32. Kf1 {[%clk 0:00:19]}  a5 {[%clk 0:00:17]} 33. bxa5 {[%clk 0:00:19]}  Qb5+ {[%clk 0:00:18]} 34. Kg1 {[%clk 0:00:18]}  Qxa5 {[%clk 0:00:18]} 35. Kf1 {[%clk 0:00:14]}  c5 {[%clk 0:00:16]} 36. Qd7 {[%clk 0:00:09]}  Rf8 {[%clk 0:00:11]} 37. Qd5 {[%clk 0:00:08]}  Qa6+ {[%clk 0:00:09]} 38. Kg2 {[%clk 0:00:05]}  cxd4 {[%clk 0:00:09]} 39. cxd4 {[%clk 0:00:06]}  Re8 {[%clk 0:00:06]} 40. Rf2 {[%clk 0:00:05]}  Qe6 {[%clk 0:00:04]} 41. Qxb7 {[%clk 0:00:05]}  Rd8 {[%clk 0:00:02]} 42. Nc2 {[%clk 0:00:05]}  Rd5 {[%clk 0:00:03]} 43. Nb4 {[%clk 0:00:05]}  Rxg5+ {[%clk 0:00:03]} 44. Kf1 {[%clk 0:00:04]}  f6 {[%clk 0:00:02]} 45. Qb8+ {[%clk 0:00:03]}  Kh7 {[%clk 0:00:03]} 46. Ke2 {[%clk 0:00:03]}  Qxh3 {[%clk 0:00:03]} 47. Qe8 {[%clk 0:00:02]}  Qg4+ {[%clk 0:00:03]} 48. Kd2 {[%clk 0:00:02]}  h3 {[%clk 0:00:03]} 49. Nd5 {[%clk 0:00:03]}  Qg3 {[%clk 0:00:02]} 50. Nxf6+ {[%clk 0:00:03]}  gxf6 {[%clk 0:00:02]} 51. Qf7+ {[%clk 0:00:03]}  Kh6 {[%clk 0:00:03]} 52. Qxf6 {[%clk 0:00:04]}  Qxf2+ {[%clk 0:00:02]} 53. Qxf2 {[%clk 0:00:04]}  Rg2 {[%clk 0:00:03]} 54. Ke2 {[%clk 0:00:04]}  Kg5 {[%clk 0:00:02]} 55. d5 {[%clk 0:00:02]}  Ne5 {[%clk 0:00:01]} 56. d6 {[%clk 0:00:03]}  Rxf2+ {[%clk 0:00:02]} 57. Kxf2 {[%clk 0:00:03]}  Kf5 {[%clk 0:00:03]} 58. Kg3 {[%clk 0:00:03]}  Ke6 {[%clk 0:00:03]} 59. Kxh3 {[%clk 0:00:04]}  Kxd6 {[%clk 0:00:04]} 60. Kg3 {[%clk 0:00:05]}  Kd5 {[%clk 0:00:05]} 61. Kf4 {[%clk 0:00:05]}  Nc4 {[%clk 0:00:06]} 62. Kg3 {[%clk 0:00:05]}  Nxe3 {[%clk 0:00:07]} 63. Kf4 {[%clk 0:00:06]}  Nc4 {[%clk 0:00:07]} 64. Kg3 {[%clk 0:00:07]}  Kd4 {[%clk 0:00:08]} 65. Kf2 {[%clk 0:00:07]}  e3+ {[%clk 0:00:09]} 66. Ke1 {[%clk 0:00:08]}  Ke4 {[%clk 0:00:10]} 67. Ke2 {[%clk 0:00:08]}  Kd4 {[%clk 0:00:11]} 68. Ke1 {[%clk 0:00:09]}  Kd3 {[%clk 0:00:12]} 69. Kd1 {[%clk 0:00:10]}  e2+ {[%clk 0:00:12]} 70. Ke1 {[%clk 0:00:11]}  Nd2 {[%clk 0:00:13]} 71. Kf2 {[%clk 0:00:12]}  Nf3 {[%clk 0:00:13]} 72. Kxf3 {[%clk 0:00:12]}  e1=Q {[%clk 0:00:14]} 73. Kf4 {[%clk 0:00:13]}  Qe6 {[%clk 0:00:14]} 74. Kg5 {[%clk 0:00:13]}  Qf7 {[%clk 0:00:15]} 0-1


[Site "https://www.chess.com"]

[Event "Titled Tuesday Blitz May 25 2021"]
[White "Maghsoodloo, Parham"]
[Black "Harutjunyan, Gevorg"]
[WhiteFideId "12539929"]
[BlackFideId "13300873"]
[WhiteElo "2601"]
[BlackElo "2498"]
[Result "1-0"]
[Round "07"]
[TimeControl "180+1"]
[Date "2021.05.25"]
[WhiteClock "0:00:37"]
[BlackClock "0:00:02"]

1. e4 {[%clk 0:03:00]}  c6 {[%clk 0:02:58]} 2. Nc3 {[%clk 0:02:58]}  d5 {[%clk 0:02:58]} 3. Nf3 {[%clk 0:02:56]}  Bg4 {[%clk 0:02:54]} 4. h3 {[%clk 0:02:56]}  Bxf3 {[%clk 0:02:53]} 5. Qxf3 {[%clk 0:02:57]}  Nf6 {[%clk 0:02:53]} 6. d3 {[%clk 0:02:54]}  e6 {[%clk 0:02:53]} 7. g3 {[%clk 0:02:53]}  Bc5 {[%clk 0:02:52]} 8. Bg2 {[%clk 0:02:53]}  O-O {[%clk 0:02:51]} 9. O-O {[%clk 0:02:54]}  Nbd7 {[%clk 0:02:50]} 10. Qe2 {[%clk 0:02:51]}  Qb8 {[%clk 0:02:46]} 11. Kh1 {[%clk 0:02:44]}  a5 {[%clk 0:02:42]} 12. f4 {[%clk 0:02:42]}  a4 {[%clk 0:02:38]} 13. a3 {[%clk 0:02:42]}  b5 {[%clk 0:02:37]} 14. g4 {[%clk 0:02:41]}  d4 {[%clk 0:02:19]} 15. Nb1 {[%clk 0:02:39]}  Ne8 {[%clk 0:02:15]} 16. Nd2 {[%clk 0:02:37]}  e5 {[%clk 0:02:04]} 17. f5 {[%clk 0:02:35]}  Nd6 {[%clk 0:02:03]} 18. g5 {[%clk 0:02:35]}  b4 {[%clk 0:02:01]} 19. h4 {[%clk 0:02:33]}  Qb5 {[%clk 0:01:35]} 20. Bh3 {[%clk 0:02:20]}  Bb6 {[%clk 0:01:08]} 21. f6 {[%clk 0:02:16]}  Nc5 {[%clk 0:00:55]} 22. axb4 {[%clk 0:02:15]}  Qxb4 {[%clk 0:00:55]} 23. fxg7 {[%clk 0:02:16]}  Rfe8 {[%clk 0:00:49]} 24. Qh5 {[%clk 0:01:58]}  Ne6 {[%clk 0:00:39]} 25. Bxe6 {[%clk 0:01:42]}  Rxe6 {[%clk 0:00:37]} 26. Nc4 {[%clk 0:01:42]}  Ra7 {[%clk 0:00:22]} 27. Bd2 {[%clk 0:01:09]}  Qc5 {[%clk 0:00:21]} 28. Rxa4 {[%clk 0:00:58]}  Rxa4 {[%clk 0:00:12]} 29. Nxd6 {[%clk 0:00:58]}  Rg6 {[%clk 0:00:12]} 30. Nxf7 {[%clk 0:00:52]}  Ra7 {[%clk 0:00:05]} 31. Qf3 {[%clk 0:00:38]}  Qe7 {[%clk 0:00:02]} 32. Nh6+ {[%clk 0:00:36]}  Rxh6 {[%clk 0:00:02]} 33. Qf8+ {[%clk 0:00:36]}  Qxf8 {[%clk 0:00:02]} 34. gxf8=Q# {[%clk 0:00:37]} 1-0


[Site "https://www.chess.com"]

[Event "Titled Tuesday Blitz May 25 2021"]
[White "Mikhalsky, Vladimir"]
[Black "Tarigan, Gilbert Elroy"]
[WhiteFideId "14144352"]
[BlackFideId "7108133"]
[WhiteElo "2280"]
[BlackElo "1908"]
[Result "0-1"]
[Round "07"]
[TimeControl "180+1"]
[Date "2021.05.25"]
[WhiteClock "0:00:08"]
[BlackClock "0:00:14"]

1. c4 {[%clk 0:02:55]}  Nf6 {[%clk 0:02:45]} 2. Nc3 {[%clk 0:02:54]}  e6 {[%clk 0:02:46]} 3. e4 {[%clk 0:02:54]}  c5 {[%clk 0:02:36]} 4. Nf3 {[%clk 0:02:51]}  d6 {[%clk 0:02:33]} 5. d4 {[%clk 0:02:50]}  cxd4 {[%clk 0:02:34]} 6. Nxd4 {[%clk 0:02:50]}  a6 {[%clk 0:02:35]} 7. Be3 {[%clk 0:02:48]}  Be7 {[%clk 0:02:35]} 8. Be2 {[%clk 0:02:47]}  Nc6 {[%clk 0:02:35]} 9. Nxc6 {[%clk 0:02:46]}  bxc6 {[%clk 0:02:35]} 10. c5 {[%clk 0:02:41]}  d5 {[%clk 0:02:34]} 11. b4 {[%clk 0:02:28]}  e5 {[%clk 0:02:32]} 12. exd5 {[%clk 0:02:25]}  cxd5 {[%clk 0:02:33]} 13. Na4 {[%clk 0:02:22]}  d4 {[%clk 0:02:30]} 14. Bd2 {[%clk 0:02:21]}  Nd5 {[%clk 0:02:26]} 15. Bf3 {[%clk 0:02:20]}  Bb7 {[%clk 0:02:23]} 16. Nb6 {[%clk 0:02:13]}  O-O {[%clk 0:02:14]} 17. Nxa8 {[%clk 0:02:10]}  Qxa8 {[%clk 0:02:15]} 18. O-O {[%clk 0:02:04]}  f5 {[%clk 0:02:13]} 19. a4 {[%clk 0:01:45]}  e4 {[%clk 0:02:05]} 20. Be2 {[%clk 0:01:45]}  d3 {[%clk 0:02:04]} 21. Bh5 {[%clk 0:01:42]}  g6 {[%clk 0:01:57]} 22. Rc1 {[%clk 0:01:40]}  gxh5 {[%clk 0:01:51]} 23. b5 {[%clk 0:01:40]}  axb5 {[%clk 0:01:45]} 24. axb5 {[%clk 0:01:39]}  Qe8 {[%clk 0:01:46]} 25. c6 {[%clk 0:01:38]}  Bc8 {[%clk 0:01:36]} 26. b6 {[%clk 0:01:33]}  f4 {[%clk 0:01:29]} 27. b7 {[%clk 0:01:29]}  Bg4 {[%clk 0:01:26]} 28. Qb3 {[%clk 0:01:29]}  Be6 {[%clk 0:01:22]} 29. Rb1 {[%clk 0:01:19]}  Bd6 {[%clk 0:01:15]} 30. Qa4 {[%clk 0:01:11]}  Qg6 {[%clk 0:01:10]} 31. Qa8 {[%clk 0:00:59]}  Bb8 {[%clk 0:00:55]} 32. Bb4 {[%clk 0:00:45]}  Re8 {[%clk 0:00:29]} 33. Rfe1 {[%clk 0:00:40]}  e3 {[%clk 0:00:26]} 34. f3 {[%clk 0:00:32]}  Bh3 {[%clk 0:00:23]} 35. Rb2 {[%clk 0:00:28]}  e2 {[%clk 0:00:17]} 36. g4 {[%clk 0:00:21]}  hxg4 {[%clk 0:00:15]} 37. Kf2 {[%clk 0:00:13]}  g3+ {[%clk 0:00:13]} 38. hxg3 {[%clk 0:00:08]}  Qxg3# {[%clk 0:00:14]} 0-1


[Site "https://www.chess.com"]

[Event "Titled Tuesday Blitz May 25 2021"]
[White "Noboa Silva, Kevin"]
[Black "Shapiro, David"]
[WhiteFideId "3618471"]
[BlackFideId "24133523"]
[WhiteElo "2161"]
[BlackElo "2261"]
[Result "0-1"]
[Round "07"]
[TimeControl "180+1"]
[Date "2021.05.25"]
[WhiteClock "0:00:01"]
[BlackClock "0:00:36"]

1. d4 {[%clk 0:03:00]}  d5 {[%clk 0:02:52]} 2. c4 {[%clk 0:03:00]}  c6 {[%clk 0:02:50]} 3. cxd5 {[%clk 0:03:01]}  cxd5 {[%clk 0:02:50]} 4. Bf4 {[%clk 0:03:01]}  Nc6 {[%clk 0:02:49]} 5. e3 {[%clk 0:03:01]}  Nf6 {[%clk 0:02:48]} 6. Nc3 {[%clk 0:03:01]}  a6 {[%clk 0:02:48]} 7. Bd3 {[%clk 0:03:01]}  Bg4 {[%clk 0:02:47]} 8. Nge2 {[%clk 0:03:01]}  e6 {[%clk 0:02:47]} 9. O-O {[%clk 0:03:01]}  Bd6 {[%clk 0:02:45]} 10. f3 {[%clk 0:03:00]}  Bh5 {[%clk 0:02:43]} 11. Rc1 {[%clk 0:03:01]}  O-O {[%clk 0:02:42]} 12. Na4 {[%clk 0:03:01]}  Bg6 {[%clk 0:02:38]} 13. Nc5 {[%clk 0:03:00]}  Bxc5 {[%clk 0:02:38]} 14. Rxc5 {[%clk 0:02:59]}  Nd7 {[%clk 0:02:31]} 15. Rc3 {[%clk 0:02:57]}  Rc8 {[%clk 0:02:08]} 16. Bg3 {[%clk 0:02:47]}  Qb6 {[%clk 0:02:05]} 17. Rb3 {[%clk 0:02:11]}  Qa7 {[%clk 0:02:02]} 18. Bxg6 {[%clk 0:02:07]}  hxg6 {[%clk 0:02:00]} 19. Qd2 {[%clk 0:02:07]}  Nb6 {[%clk 0:01:57]} 20. Rc1 {[%clk 0:01:57]}  Nc4 {[%clk 0:01:57]} 21. Qc2 {[%clk 0:01:38]}  N6a5 {[%clk 0:01:36]} 22. Rc3 {[%clk 0:01:34]}  Nxe3 {[%clk 0:01:29]} 23. Rxc8 {[%clk 0:01:04]}  Nxc2 {[%clk 0:01:28]} 24. R1xc2 {[%clk 0:01:02]}  Nc6 {[%clk 0:01:25]} 25. Rxf8+ {[%clk 0:00:55]}  Kxf8 {[%clk 0:01:26]} 26. Kf1 {[%clk 0:00:44]}  Qb6 {[%clk 0:01:17]} 27. a3 {[%clk 0:00:27]}  Qb3 {[%clk 0:01:14]} 28. Rd2 {[%clk 0:00:21]}  Na5 {[%clk 0:01:12]} 29. Nc1 {[%clk 0:00:17]}  Qb5+ {[%clk 0:01:12]} 30. Ke1 {[%clk 0:00:15]}  Nc4 {[%clk 0:01:06]} 31. Rc2 {[%clk 0:00:14]}  Qb6 {[%clk 0:00:57]} 32. Bf2 {[%clk 0:00:11]}  Nxb2 {[%clk 0:00:46]} 33. h4 {[%clk 0:00:07]}  Nc4 {[%clk 0:00:44]} 34. Rc3 {[%clk 0:00:03]}  Qb2 {[%clk 0:00:42]} 35. Ne2 {[%clk 0:00:02]}  Qa1+ {[%clk 0:00:39]} 36. Rc1 {[%clk 0:00:01]}  Qxa3 {[%clk 0:00:40]} 37. Kf1 {[%clk 0:00:01]}  b5 {[%clk 0:00:36]} 0-1


[Site "https://www.chess.com"]